Cogmind - Beta 15 *** ADVENTURER MODE // 2025.06.19 @ 00:28:24 Player: Asta ^w^ Result: Destroyed self with Rocket Launcher Performance ------------- Evolutions (0) 0 Regions Visited (2) 400 Robots Destroyed (35) 175 Value Destroyed (667) 667 Prototype IDs (0) 0 Alien Tech Used (0) 0 Bonus (0) 0 TOTAL SCORE: 1242 Bonus ------- None Cogmind --------- Core Integrity 0/250 Matter 280/300 Energy 265/275 System Corruption 1% Temperature Cool (0) Movement Walking (120) Location -10/Mines Parts ------- > --- POWER (1) -------- Deuterium Engine > --- PROPULSION (2) --- Aluminum Leg Carbon-fiber Leg > --- UTILITY (2) ------ Terrain Scanner Terrain Scan Processor > --- WEAPON (2) ------- Medium Laser Rocket Launcher > --- INVENTORY (5) ---- Aluminum Leg Sensor Array Weapon Shielding Heavy Flail Peak State ------------ > --- POWER ------------ Deuterium Engine > --- PROPULSION ------- Aluminum Leg Carbon-fiber Leg > --- UTILITY ---------- Sensor Array Terrain Scanner > --- WEAPON ----------- Rocket Launcher Heavy Flail > --- INVENTORY -------- Aluminum Leg Terrain Scan Processor Weapon Shielding Medium Laser [Rating: 14] Favorites ----------- Power Light Ion Engine Engine Light Ion Engine Propulsion Aluminum Leg Leg Aluminum Leg Utility Targeting Computer Device Terrain Scanner Storage High-capacity Matter Pod Processor Targeting Computer Protection Weapon Shielding Weapon Beam Cannon Energy Gun Medium Laser Energy Cannon Beam Cannon Ballistic Gun Light Assault Rifle Launcher Rocket Launcher Impact Weapon Heavy Flail Build | -11 -10 -10 ------- Run | Yrd Mat Min Slots Evolved . | . . . Power . | . . . Propulsion . | . . . Utility . | . . . Weapon . | . . . Parts Attached 29 | 5 14 10 Power 6 | 1 3 2 Engine 6 | 1 3 2 Core . | . . . Reactor . | . . . Propulsion 9 | 2 4 3 Treads . | . . . Leg 9 | 2 4 3 Wheel . | . . . Hover . | . . . Flight . | . . . Utility 7 | . 4 3 Device 2 | . . 2 Storage 1 | . 1 . Processor 3 | . 2 1 Hackware . | . . . Protection 1 | . 1 . Artifact . | . . . Weapon 7 | 2 3 2 Energy Gun 2 | 1 1 . Energy Cannon 1 | . 1 . Ballistic Gun 1 | 1 . . Ballistic Cannon . | . . . Launcher 2 | . 1 1 Special Weapon . | . . . Impact Weapon 1 | . . 1 Slashing Weapon . | . . . Piercing Weapon . | . . . Special Melee Weapon . | . . . Unidentified Prototypes . | . . . Parts Lost 3 | . 3 . Power 1 | . 1 . Propulsion 1 | . 1 . Utility . | . . . Weapon 1 | . 1 . Highest Loss Streak 3 | . 3 . To Critical Strikes . | . . . Average Backups 4 | . 4 4 Power . | . . . Propulsion . | . . 1 Utility 2 | . 1 2 Weapon 1 | . 1 . Tool/Special . | . . . Unused Backups 4 | . 3 1 Power . | . . . Propulsion 2 | . 2 . Utility 1 | . 1 . Weapon 1 | . . 1 Tool/Special . | . . . Average Slot Usage (%) 96 | . 94 100 Engine 13 | . 12 14 Leg 27 | . 27 28 Device 3 | . . 10 Storage 1 | . 2 . Processor 20 | . 21 17 Energy Gun 5 | . 1 14 Energy Cannon 9 | . 12 3 Ballistic Gun 8 | . 12 . Launcher 4 | . 1 10 Peak Build Rating 14 | 5 7 14 Average Rating 7 | 4 6 11 On Entrance 4 | . 5 7 Naked Turns . | . . . Heaviest Build 17 | 8 11 17 Greatest Support 25 | 20 20 25 Greatest Overweight (x) 3 | 2 3 . Average Overweight (x) . | . . . Largest Inventory Capacity 5 | 5 5 5 Average Capacity 5 | 5 5 5 Most Carried 5 | . 5 5 Average Carried 4 | . 4 4 Final Capacity 5 | 5 5 5 Final Carried 5 | . 5 4 Class Distribution -------------------- 92% | Mutant 7% | Scavenger-Mutant Dominant Class ---------------- Mutant | -10/Materials Mutant | -10/Mines Resources | -11 -10 -10 ----------- Run | Yrd Mat Min Matter Collected 728 | 206 362 160 Remotely . | . . . Salvage Created 872 | . 568 304 Parts 75 | . 52 23 Haulers Intercepted 1 | . 1 . Recyclers Shooed 2 | . 1 1 Parts Field Recycled . | . . . Retrieved Matter . | . . . Parts Self-Destructed . | . . . Prevented . | . . . Kills | -11 -10 -10 ------- Run | Yrd Mat Min Combat Hostiles Destroyed 26 | . 15 11 Guns 6 | . 4 2 Cannons 8 | . 7 1 AOE 11 | . 3 8 Classes Destroyed 5 | . 5 . Builder 6 | . 4 2 Hauler 1 | . 1 . Recycler 2 | . 1 1 Swarmer 15 | . 9 6 Grunt 11 | . 6 5 Best Kill Streak 6 | . 6 6 Combat Bots Only 5 | . 5 3 Max Kills in Single Turn 4 | . 4 3 Gunslinging . | . . . Exploded 2 | . 2 2 Melee . | . . . Uniques/NPCs Destroyed . | . . . Combat | -11 -10 -10 -------- Run | Yrd Mat Min Hostile Shots Fired 142 | . 124 18 Missed 41 | . 36 5 Hits 101 | . 88 13 Projectile 101 | . 88 13 Critical Strikes 1 | . 1 . Part Disruptions 2 | . 2 . Damage Taken 749 | . 620 129 Core 258 | . 202 56 Absorbed by Shields . | . . . Ignored by Resistances 241 | . 200 41 Regen/Repaired (Parts) 33 | . 33 . Core Remaining (%) 100 | 100 . . Volleys Fired 71 | . 60 11 Largest 2 | . 2 2 Hottest 110 | . 110 110 Shots Fired 131 | . 109 22 Gun 70 | . 59 11 Cannon 52 | . 47 5 Launcher 9 | . 3 6 Special . | . . . Kinetic 43 | . 43 . Thermal 79 | . 63 16 Explosive 9 | . 3 6 Electromagnetic . | . . . Robot Hit Streak 17 | . 17 8 Robot Miss Streak 3 | . 3 1 Penetration Max . | . . . Secondary Targets . | . . . Shots Hit Robots 69 | . 57 12 Core Hits 47 | . 29 18 Critical Kills 1 | . 1 . Critical Parts Destroyed . | . . . Critical Strikes 2 | . 1 1 Burn 1 | . . 1 Meltdown 1 | . 1 . Melee Attacks . | . . . Impact . | . . . Slashing . | . . . Piercing . | . . . Sneak Attacks . | . . . Combat Hostiles . | . . . Follow-up Attacks . | . . . Damage Inflicted 1862 | . 1054 808 Guns 383 | . 308 75 Cannons 594 | . 541 53 Explosions 875 | . 205 670 Melee . | . . . Ramming 10 | . . 10 Kinetic 206 | . 206 . Thermal 771 | . 643 128 Explosive 868 | . 198 670 Electromagnetic 7 | . 7 . Impact . | . . . Slashing . | . . . Piercing . | . . . Highest Corruption 1 | . 1 1 Average Corruption 1 | . 1 1 Corruption Purged . | . . . Corruption Blocked . | . . . Effects 3 | . . 3 Matter Fused 1 | . . 1 Data Loss (minor) 2 | . . 2 Overload Shots . | . . . Overflow Damage 63 | . 4 59 Projectiles . | . . . Explosions 63 | . 4 59 Melee . | . . . Knockbacks . | . . . Impact . | . . . Kinetic . | . . . Secondary . | . . . Self-Inflicted Damage 63 | . 31 32 Shots 4 | . 2 2 Rammed . | . . . Targets Rammed 2 | . 1 1 Kicked 2 | . 1 1 Crushed . | . . . Highest Temperature 325 | . 325 228 Average Temperature 105 | . 114 67 Received Heat Transfer 207 | . 171 36 Effects 4 | . 4 . Energy Bleed 2 | . 2 . Interference 2 | . 2 . Siege Activations . | . . . Martial Activations . | . . . Shielding Activations . | . . . Robots Disrupted . | . . . Combat Hostiles . | . . . Robots Corrupted . | . . . Combat Hostiles . | . . . Parts Fried . | . . . Impact Corruptions . | . . . Robots Melted 1 | . 1 . Combat Hostiles 1 | . 1 . Parts Melted 2 | . 2 . Heat Transferred 1850 | . 1443 407 Parts Sabotaged . | . . . Parts Stolen . | . . . Parts Stripped . | . . . Power Chain Reactions . | . . . Alert | -11 -10 -10 ------- Run | Yrd Mat Min Maximum Alert Level . | . . . Low Security (%) 100 | 100 100 100 Level 1 . | . . . Level 2 . | . . . Level 3 . | . . . Level 4 . | . . . Level 5 . | . . . High Security . | . . . Max Security . | . . . Peak Influence 135 | . 135 116 Initial 23 | . . 23 Average 39 | . 32 63 Influence Increases 823 | . 485 338 Destroy 0b10 Robot/C 520 | . 300 220 Destroy 0b10 Robot/NC 45 | . 30 15 Destroy Leader 92 | . 52 40 Successful Hack 23 | . 23 . Disable Machine 54 | . 36 18 Destroy Structure 89 | . 44 45 Influence Decreases 742 | . 412 330 Entered New Map 50 | . . 50 Time Decay 655 | . 375 280 Lost Part 30 | . 30 . Purge Threat 7 | . 7 . Squads Dispatched 1 | . 1 . Investigation 1 | . 1 . Extermination . | . . . Reinforcement . | . . . Assault . | . . . Garrison . | . . . Intercept . | . . . Searches Triggered . | . . . Construction Impeded . | . . . Haulers Reinforced . | . . . Active Scanning Responses . | . . . Cargo Convoy Interrupts . | . . . Stealth | -11 -10 -10 --------- Run | Yrd Mat Min Distress Signals 1 | . 1 . Communications Jammed . | . . . Distress Signals . | . . . Times Spotted 31 | . 19 12 Peak Tracking Total 6 | . 6 3 Tactical Retreats . | . . . Traps | -11 -10 -10 ------- Run | Yrd Mat Min Traps Triggered . | . . . Indirectly . | . . . Trap Hack Attempts . | . . . Triggered . | . . . Disarmed . | . . . Reprogrammed . | . . . Reused . | . . . Traps Extracted . | . . . Installed . | . . . Triggered . | . . . Machines | -11 -10 -10 ---------- Run | Yrd Mat Min Machines Disabled 6 | . 4 2 Max in Single Turn 1 | . 1 1 Machines Repaired . | . . . Machines Dismantled . | . . . Machines Sabotaged . | . . . Overloaded Fab Kills . | . . . Hacking | -11 -10 -10 --------- Run | Yrd Mat Min Machines Accessed 7 | . 6 1 Terminals 4 | . 4 . Fabricators . | . . . Repair Stations 1 | . 1 . Recycling Units 1 | . 1 . Scanalyzers . | . . . Garrison Access . | . . . Total Hacks 21 | . 20 1 Successful 16 | . 15 1 Failed 5 | . 5 . Catastrophic . | . . . Database Lockouts . | . . . Manual 4 | . 4 . Terminals 13 | . 13 . Fabricators . | . . . Repair Stations 3 | . 3 . Recycling Units 4 | . 4 . Scanalyzers . | . . . Garrison Access . | . . . Terminal Hacks 10 | . 9 1 Record 1 | . 1 . Robot Analysis 1 | . 1 . Open Door 1 | . . 1 Alert Level 3 | . 3 . Unreport Threat 1 | . 1 . Locate Traps 1 | . 1 . Patrol Status 1 | . 1 . Hauler Manifests 1 | . 1 . Fabricator Hacks . | . . . Repair Station Hacks 2 | . 2 . Scan Component 1 | . 1 . Repair 1 | . 1 . Recycling Unit Hacks 4 | . 4 . Process 1 | . 1 . Report Inventory 2 | . 2 . Retrieve Components 1 | . 1 . Scanalyzer . | . . . Garrison Access Hacks . | . . . Unauthorized Hacks . | . . . Terminals . | . . . Fabricators . | . . . Repair Stations . | . . . Recycling Units . | . . . Scanalyzers . | . . . Garrison Access . | . . . Data Cores Recovered . | . . . Used . | . . . Hacking Detections 6 | . 6 . Full Trace Events 1 | . 1 . Feedback Events . | . . . Feedback Blocked . | . . . Robot Schematics Acquired . | . . . Robots Built . | . . . Authchips . | . . . Time . | . . . Total Robot Build Rating . | . . . Part Schematics Acquired . | . . . Parts Built . | . . . Authchips . | . . . Time . | . . . Total Part Build Rating . | . . . Parts Repaired 1 | . 1 . Time 13 | . 13 . Parts Recycled . | . . . Recycled Matter 50 | . 50 . Retrieved Matter . | . . . Retrieved Components 9 | . 9 . Parts Scanalyzed . | . . . Part Schematics Acquired . | . . . Parts Damaged . | . . . Bothacking | -11 -10 -10 ------------ Run | Yrd Mat Min Used RIF Installer . | . . . Robots Hacked . | . . . Non-combat . | . . . Combat . | . . . Robot Hacks Applied . | . . . Relay Couplers Released . | . . . Fabnet Peak Effective % . | . . . Robots Rewired . | . . . Allies Hacked . | . . . Hacks Repelled . | . . . Allies | -11 -10 -10 -------- Run | Yrd Mat Min Total Allies . | . . . Largest Group . | . . . Highest-Rated Group . | . . . Highest-Rated Ally . | . . . Total Orders . | . . . Ally Attacks . | . . . Total Damage . | . . . Kills . | . . . Allies Corrupted . | . . . Allies Melted . | . . . Intel | -11 -10 -10 ------- Run | Yrd Mat Min Active Infowar (turns) 1249 | . 676 573 Sensors 68 | . . 68 Terrain 385 | . . 385 T.N.C. 864 | . 676 188 Robot Analysis Total 1 | . 1 . Derelict Logs Recovered 1 | . . 1 Drone Launches . | . . . Drone Recoveries . | . . . Exploration | -11 -10 -10 ------------- Run | Yrd Mat Min Turns Passed 2021 | 92 1355 574 Spaces Moved 1086 | 44 645 397 Core 22 | 19 3 . Treads . | . . . Legs 1064 | 25 642 397 Wheels . | . . . Hover . | . . . Flight . | . . . Fastest Speed 50 | 50 120 120 Average Speed 120 | 118 120 120 Slowest Speed 200 | 150 200 120 Overloaded Moves . | . . . Propulsion Burnouts . | . . . Robots Hopped . | . . . Potential Cave-ins . | . . . Cave-ins Triggered . | . . . Exploration Rate (%) 45 | 6 59 72 Regions Visited 2 Branch Regions 1 Pre-discovered Areas 1 | . . 1 Known Exits Taken . | . . . Unknown Exits Taken 2 | 1 1 . Scrap Searched 1 | . . 1 Spaces Dug . | . . . Terrain Destroyed 120 | . 67 53 Melee . | . . . Projectile . | . . . AOE 120 | . 67 53 Terrain Rammed . | . . . Walls Destroyed . | . . . Machines Disabled . | . . . Actions | -11 -10 -10 --------- Run | Yrd Mat Min Total 1684 | 81 1125 478 Wait 463 | 33 383 47 Move 1084 | 43 644 397 Hop . | . . . Pick Up 16 | . 14 2 Fast Attach 10 | 5 4 1 Attach 5 | . 3 2 Detach . | . . . Swap 15 | . 7 8 Drop 18 | . 9 9 Fire 71 | . 60 11 Melee . | . . . Ram . | . . . Kick 2 | . 1 1 Crush . | . . . Escape Stasis . | . . . Rewire . | . . . Trap . | . . . Miscellaneous . | . . . Route ------- -11/Scrapyard -10/Materials (discovered 4 exits: [*Mat x2] / *Min x2) -10/Mines History --------- Turn | Location | Event 6 | -11/Scrapyard | Discovered new exit (range 16) 93 | -11/Scrapyard | Entered Materials 122 | -10/Materials | Discovered new exit (range 16) 303 | -10/Materials | Build established: Mutant 434 | -10/Materials | Discovered new exit (range 16) 471 | -10/Materials | Repaired Lgt. Ion Engine 668 | -10/Materials | Discovered new exit (range 15) 1217 | -10/Materials | Core integrity fell below 50% 1235 | -10/Materials | Discovered new exit (range 7) 1288 | -10/Materials | Core integrity fell below 20% 1305 | -10/Materials | Lost 3 parts (1p1n1w) 1448 | -10/Materials | Entered Mines 1523 | -10/Mines | Found DCF Scrap (12 items) 1566 | -10/Mines | Received a Rocket Launcher from a helpful Derelict 1619 | -10/Mines | Met a Derelict who couldn't figure out how to use a Trap Extractor 1853 | -10/Mines | Learned location of Storage (-9) 2022 | -10/Mines | Destroyed self with Rocket Launcher Last Messages --------------- World map updated: -9/Storage. 01855_ JQ-PGU(g): "We scattered so the Unaware couldn't effectively use their advantage in numbers, and I suggest you do the same." 01855_ JQ-PGU(g) slips back into the shadows. 01861_ System corrupted: Component data lost. 01892_ Kicked K-01 Serf out of the way. 01945_ G-47 Trooper destroyed. 01945_ G-34 Mercenary destroyed. 01946_ The unstable cave ceiling collapses. 01952_ Acquired 48 matter. 01954_ Acquired 30 matter. 01964_ K-01 Serf collects debris. 01965_ The unstable cave ceiling collapses. 01967_ K-01 Serf collects debris. 01997_ U-05 Engineer builds a Wall. 02001_ U-05 Engineer lays Concrete. 02002_ U-05 Engineer builds a Wall. 02022_ Plasma Injector explodes. 02022_ G-34 Mercenary destroyed. Map ----- +----------------------------------------------------+ | #####?## ! # #??# ????##??#??????? | | #????## ###??#?#??###?#????#??? | | ##### ##???## * ###?#???? #?#???????? | | ?#??## ####### =* ####????# ####???? ?? | | ??????######?# | #####??# ??????#?? | | ?#?###?##?##?# ## ## ##?# #?????####? | | ?########??#### #?# ###### ### ###??## ## | | #####??#?###?####??# #### ## #### # | | #??##???##???### ##### | | #??##???#?#??#?# ##??## ##### # | | ## #?##?###??##?##### #????######???# ## | | ## ####?####?###???## ##?#??????????# #? | | ## ##????#?######### ##?#?#???????# ## | | # #######??# ###?#??#??#?# ] | | ##??# ###????????## ### | | ##?# ###### """ #???#?????# #######?? | | # ### ####?# """ #?????#???# #???????? | | ## #??### """ #?????????# #???????? | | ?###### ####? #?????????# #???????? | | ######## ###### #?????????# #???????? | | # #??#?? ##??#?????# #???????? | | # ##??##?####### ##?#???????? ????????? | | # ###### ###?? ?###?## ##???#?#????? ????????? | | # #??### ####?####?## #??#???#?????#????????? | | # ###### ??###### #??##????#????????????# | | # #### ####?### @ #####?????????????????# | | # #### ##???### ### #??????????????????# | | # ##?# ##?#?# # ### #?????????????????? | | ### ###?## #[###k ##?#???????????????? | | ## ###### # # #* g #?#????????????????? | | #### ## ## = #% ??? ???????????? | | #### ####### ## ###= ###????????????????? | | ## ####?## ###### ####?????????????????? | | #####?##### ###?## ##???#???????????????? | | """ ########?# #?##?? ? ?#????????????????? | | """ #??##???# #?#### #? ??????????????????? | | """ ####?##?# ##?#?? ##???????????????????? | | ## ##???##?# ##?? ?? ????????????????????? | | ##### ### ###?##??# #???? ? ??????????????????? | | ????####?# ######### ##?? ? ?? ????????????????? | | #?#?????## ##?? ?????????????????????? | | ##??#???############### ?? ??? ??????????????????? | | ????##?#??#?#?####?#??#?? ?? ?#?????????????????? | | ??????#?#??#???#???#??#?? ??? ???????????????????? | | ??????#????#??##?????#??? ???????????????????????? | | ????#???#??#?##?????##?#? ? ? ???????????????????? | | #?????#??????##??#?????? ????????????????????????? | | ???#??????#???????#?#?#?? ?#?????????????????????? | | ?????????#???#??#??#?#???????????????????????????? | | ?????????#?#????????????#????????????????????????? | +----------------------------------------------------+ Best States ------------- Heat Dissipation 25 Energy Generation 14 Energy Capacity 275 Matter Stores 414 Matter Capacity 500 Sight Range 16 Robot Scan Range 14 Terrain Scan Range 14 Terrain Scan Density 85 Resistance: KI 20 Resistance: TH 20 Resistance: EX 20 Resistance: EM 20 Resistance: I 20 Resistance: S 20 Resistance: P 20 Evasion (%) 55 Targeting Accuracy 5 Offensive Hacking 10 Item Schematics ----------------- None Robot Schematics ------------------ None Fabricated ------------ Nothing Repaired ---------- Lgt. Ion Engine | 17% | -10/Materials Alien Tech Used ----------------- None Achievements -------------- None Challenges ------------ None Game ------ Seed AdvancedDeuteriumMediator Manual? 0 Play Time 00:19:43 Cumulative 14.7 hours Start 2025.06.18 @ 23:58:57 End 2025.06.19 @ 00:28:24 Sessions 1 Manual Loads 0 Difficulty Adventurer Special Mode None Game No. 21 Rogue 12 Adventurer 9 Explorer 0 Win Type - Total 0 Types 0/0/0/0/0/0/0/0/0/0 Lore% 14 Gallery% 20 Achievement% 21 Wizard Run 0 Options --------- Layout 1 ASCII 0 Keyboard 0 Movement Mouse Keybinds 0 Fullscreen 1 Font 32/SmallcapsGlow Map View 50x40 Zoom Use 0% Tactical HUD 1 Map Filters NONE Filters NONE Steam 1 RUN: 15b5e8f1-ce6a-46a5-a351-c6400f73b288